fUSD/lending_fUSD_20260406
["ID","MTS","AMOUNT","RATE_DAILY","PERIOD"]
[419929092,1775513459225,-151.0,0.00015995,2]
[419929093,1775513459236,-402.8195,0.00015995,2]
[419929094,1775513459246,-9978.3501869,0.00016,2]
[419929095,1775513459259,-693.8,0.00016,2]
[419929096,1775513459283,-783.99,0.00011662,2]
[419929097,1775513459301,-25869.41585005,0.00011662,2]
[419929098,1775513459311,-176677.23326514,0.00016,2]
[419929099,1775513506753,200.0,9.9e-05,3]
[419929100,1775513508880,500.0,0.0001,3]
[419929105,1775514137599,1084.35002386,9.914e-05,3]
[419929106,1775514140472,204.39633377,9.914e-05,3]
[419929107,1775514331103,-1500.0,9.362e-05,2]
[419929108,1775514331126,-250.0,9.379e-05,2]
[419929109,1775514331148,-179.64227645,9.396e-05,2]
[419929110,1775514331169,-200.0,9.397e-05,2]
[419929111,1775514331191,-250.0,9.447e-05,2]
[419929112,1775514331211,-379.95904341,9.485e-05,2]
[419929114,1775514357827,169.34,7.554e-05,2]
[419929115,1775514396082,-169.34,8.814e-05,2]
[419929116,1775514396103,-250.0,9.149e-05,2]
[419929117,1775514396123,-286.0,9.485e-05,2]
[419929118,1775514396142,-150.0,9.485e-05,2]
[419929119,1775514396163,-120.04095659,9.485e-05,2]
[419929120,1775514396183,-16.74225438,9.594e-05,2]
[419929121,1775514436651,300.0,9.7e-05,3]
[419929122,1775514440344,600.0,9.8e-05,3]
[419929123,1775514441078,1000.0,9.9e-05,3]
[419929124,1775514442960,1300.0,0.0001,3]
[419929125,1775514448089,-2874.4198927,9.594e-05,2]
[419929126,1775514551200,-1051.05785292,9.594e-05,2]
[419929127,1775514551235,-166.66666666,9.624e-05,2]
[419929128,1775514551268,-166.66,9.625e-05,2]
[419929129,1775514551301,-250.0,9.695e-05,2]
[419929130,1775514551335,-1200.0,9.714e-05,2]
[419929131,1775514551365,-150.0,9.812e-05,2]
[419929132,1775514551396,-300.0,9.812e-05,2]
[419929133,1775514551427,-300.0,9.812e-05,2]
[419929134,1775514551457,-1089.56868042,9.813e-05,2]
[419929135,1775514565125,-9533.52018396,9.714e-05,2]
[419929136,1775514570015,-55383.95522143,9.714e-05,2]
[419929137,1775514570629,-15732.00092942,9.714e-05,2]
[419929139,1775514602057,1237.59,9.89e-05,14]
[419929141,1775514631772,-700.05,9.713e-05,2]
[419929142,1775514631785,-21.548,9.713e-05,2]
[419929143,1775514631795,-1200.0,9.713e-05,2]
[419929144,1775514631805,-300.0,9.713e-05,2]
[419929145,1775514631816,-150.0,9.713e-05,2]
[419929146,1775514631826,-300.0,9.713e-05,2]
[419929147,1775514631836,-27770.00012393,9.714e-05,2]
[419929148,1775514631878,-561.36,9.714e-05,2]
[419929150,1775514631949,-500.0,9.713e-05,2]
[419929152,1775514631959,-500.0,9.713e-05,2]
[419929153,1775514631971,-500.0,9.713e-05,2]
[419929154,1775514631981,-503.11279544,9.713e-05,2]
[419929155,1775514631992,-500.0,9.713e-05,2]
[419929156,1775514632002,-44044.13100816,9.714e-05,2]
[419929164,1775514637909,-500.0,9.713e-05,2]
[419929165,1775514637919,-129.77698701,9.713e-05,2]
[419929166,1775514637932,-370.22301299,9.713e-05,2]
[419929167,1775514637941,-500.0,9.713e-05,2]
[419929168,1775514637951,-500.0,9.713e-05,2]
[419929169,1775514637962,-0.63005308,9.713e-05,2]
[419929170,1775514637975,-370.61262162,9.713e-05,2]
[419929171,1775514637986,-128.7573253,9.713e-05,2]
[419929172,1775514637996,-500.0,9.713e-05,2]
[419929173,1775514638006,-500.0,9.713e-05,2]
[419929174,1775514638016,-500.0,9.713e-05,2]
[419929175,1775514638027,-41.5740624,9.713e-05,2]
[419929176,1775514638039,-350.39419958,9.713e-05,2]
[419929177,1775514638051,-108.03173802,9.713e-05,2]
[419929178,1775514638060,-500.0,9.713e-05,2]
[419929179,1775514638070,-3.81956863,9.713e-05,2]
[419929180,1775514638091,-496.18043137,9.713e-05,2]
[419929181,1775514638101,-178.8730264,9.713e-05,2]
[419929182,1775514638114,-321.1269736,9.713e-05,2]
[419929183,1775514638124,-500.0,9.713e-05,2]
[419929184,1775514638134,-135.66374528,9.713e-05,2]
[419929192,1775514640585,-364.33625472,9.713e-05,2]
[419929193,1775514640595,-500.0,9.713e-05,2]
[419929194,1775514640604,-500.0,9.713e-05,2]
[419929195,1775514640614,-500.0,9.713e-05,2]
[419929196,1775514640623,-500.0,9.713e-05,2]
[419929197,1775514640633,-500.0,9.713e-05,2]
[419929198,1775514640642,-500.0,9.713e-05,2]
[419929199,1775514640652,-500.0,9.713e-05,2]
[419929200,1775514640661,-500.0,9.713e-05,2]
[419929201,1775514640671,-500.0,9.713e-05,2]
[419929202,1775514640680,-500.0,9.713e-05,2]
[419929203,1775514640690,-471.11013279,9.713e-05,2]
[419929204,1775514640700,-500.0,9.713e-05,2]
[419929205,1775514640710,-500.0,9.713e-05,2]
[419929206,1775514640720,-500.0,9.713e-05,2]
[419929207,1775514640730,-500.0,9.713e-05,2]
[419929208,1775514640740,-500.0,9.713e-05,2]
[419929209,1775514640750,-500.0,9.713e-05,2]
[419929210,1775514640759,-500.0,9.713e-05,2]
[419929211,1775514640768,-500.0,9.713e-05,2]
[419929212,1775514640777,-500.0,9.713e-05,2]
[419929213,1775514640787,-822748.9782331,9.714e-05,2]
[419929214,1775514640797,-7336.23131958,9.813e-05,2]
[419929215,1775514640807,-299.99,9.813e-05,2]
[419929216,1775514640817,-9999.99,9.813e-05,2]
[419929217,1775514640826,-4357.04,9.813e-05,2]
[419929218,1775514640835,-150.99,9.813e-05,2]
[419929219,1775514640845,-2097.821,9.814e-05,2]
[419929220,1775514640855,-170.587,9.814e-05,2]
[419929221,1775514640864,-999.99,9.814e-05,2]
[419929222,1775514640873,-70629.68,9.814e-05,2]
[419929223,1775514640883,-150.99,9.814e-05,2]
[419929224,1775514640892,-3754.4119,9.815e-05,2]
[419929225,1775514640902,-98674.7795,9.815e-05,2]
[419929226,1775514640912,-2500.0,9.815e-05,2]
[419929227,1775514640921,-2000.0,9.824e-05,2]
[419929228,1775514640931,-500.0,9.893e-05,2]
[419929229,1775514640941,-500.68172956,9.893e-05,2]
[419929230,1775514640950,-500.0,9.893e-05,2]
[419929231,1775514640960,-500.0,9.893e-05,2]
[419929232,1775514640970,-500.0,9.893e-05,2]
[419929233,1775514640979,-500.0,9.893e-05,2]
[419929234,1775514640989,-500.0,9.893e-05,2]
[419929235,1775514640998,-500.0,9.893e-05,2]
[419929236,1775514641007,-500.0,9.893e-05,2]
[419929237,1775514641017,-298.55364435,9.914e-05,2]
[419929238,1775514641027,-500.0,9.914e-05,2]
[419929239,1775514641036,-500.0,9.914e-05,2]
[419929240,1775514641046,-500.0,9.914e-05,2]
[419929241,1775514641056,-500.0,9.914e-05,2]
[419929243,1775514641065,-500.0,9.914e-05,2]
[419929244,1775514641074,-500.0,9.914e-05,2]
[419929245,1775514641083,-500.0,9.914e-05,2]
[419929246,1775514641092,-500.0,9.914e-05,2]
[419929247,1775514641102,-500.0,9.914e-05,2]
[419929248,1775514641111,-500.0,9.914e-05,2]
[419929249,1775514641121,-500.0,9.914e-05,2]
[419929250,1775514641130,-500.0,9.914e-05,2]
[419929251,1775514641140,-326.12318315,9.914e-05,2]
[419929252,1775514641149,-500.0,9.914e-05,2]
[419929253,1775514641159,-628.97894267,9.914e-05,2]
[419929254,1775514641169,-600.0,9.914e-05,2]
[419929255,1775514641178,-500.0,9.914e-05,2]
[419929256,1775514641188,-500.0,9.914e-05,2]
[419929257,1775514641197,-500.0,9.914e-05,2]
[419929258,1775514641207,-500.0,9.914e-05,2]
[419929259,1775514641216,-500.0,9.914e-05,2]
[419929260,1775514641225,-500.0,9.914e-05,2]
[419929261,1775514641235,-228.56005861,9.914e-05,2]
[419929262,1775514641245,-500.0,9.914e-05,2]
[419929263,1775514641254,-150.0,9.914e-05,2]
[419929264,1775514641263,-581.37624855,9.914e-05,2]
[419929265,1775514641273,-1908.7943807,9.942e-05,2]
[419929266,1775514641283,-166.66,9.942e-05,2]
[419929267,1775514641292,-1005.3,0.0001,2]
[419929268,1775514641302,-1928.0,0.0001,2]
[419929269,1775514641311,-500.0,0.0001,2]
[419929270,1775514641320,-500.0,0.0001,2]
[419929271,1775514641329,-500.0,0.0001,2]
[419929272,1775514641339,-500.0,0.0001,2]
[419929273,1775514641348,-500.0,0.0001,2]
[419929274,1775514641358,-500.0,0.0001,2]
[419929275,1775514641367,-500.0,0.0001,2]
[419929276,1775514641376,-500.0,0.0001,2]
[419929277,1775514641385,-500.0,0.0001,2]
[419929278,1775514641395,-500.0,0.0001,2]
[419929279,1775514641404,-200.0,0.0001,2]
[419929280,1775514641414,-500.0,0.0001,2]
[419929281,1775514641423,-500.0,0.0001,2]
[419929282,1775514641432,-348.5586647,0.0001,2]
[419929283,1775514641442,-151.0,0.0001,2]
[419929284,1775514641451,-151.0,0.0001,2]
[419929285,1775514641461,-151.0,0.0001,2]
[419929286,1775514641470,-151.0,0.0001,2]
[419929287,1775514641480,-151.0,0.0001,2]
[419929288,1775514641489,-151.0,0.0001,2]
[419929289,1775514641498,-151.0,0.0001,2]
[419929290,1775514641508,-151.0,0.0001,2]
[419929291,1775514641518,-151.0,0.0001,2]
[419929292,1775514641527,-151.0,0.0001,2]
[419929293,1775514641537,-151.0,0.0001,2]
[419929294,1775514641546,-151.0,0.0001,2]
[419929295,1775514641555,-151.0,0.0001,2]
[419929296,1775514641564,-151.0,0.0001,2]
[419929297,1775514641574,-500.0,0.0001,2]
[419929298,1775514641583,-151.0,0.0001,2]
[419929299,1775514641593,-151.0,0.0001,2]
[419929300,1775514641602,-500.0,0.0001,2]
[419929301,1775514641611,-151.0,0.0001,2]
[419929302,1775514641620,-151.0,0.0001,2]
[419929303,1775514641630,-500.0,0.0001,2]
[419929304,1775514641639,-151.0,0.0001,2]
[419929305,1775514641648,-500.0,0.0001,2]
[419929306,1775514641658,-151.0,0.0001,2]
[419929307,1775514641667,-151.0,0.0001,2]
[419929308,1775514641677,-500.0,0.0001,2]
[419929309,1775514641686,-151.0,0.0001,2]
[419929310,1775514641696,-151.0,0.0001,2]
[419929311,1775514641705,-500.0,0.0001,2]
[419929312,1775514641715,-151.0,0.0001,2]
[419929313,1775514641724,-151.0,0.0001,2]
[419929314,1775514641734,-151.0,0.0001,2]
[419929315,1775514641744,-151.0,0.0001,2]
[419929316,1775514641754,-500.0,0.0001,2]
[419929317,1775514641763,-151.0,0.0001,2]
[419929318,1775514641772,-500.0,0.0001,2]
[419929319,1775514641782,-151.0,0.0001,2]
[419929320,1775514641791,-500.0,0.0001,2]
[419929321,1775514641800,-151.0,0.0001,2]
[419929322,1775514641809,-500.0,0.0001,2]
[419929323,1775514641818,-151.0,0.0001,2]
[419929324,1775514641827,-500.0,0.0001,2]
[419929325,1775514641837,-151.0,0.0001,2]
[419929326,1775514641847,-500.0,0.0001,2]
[419929327,1775514641856,-151.0,0.0001,2]
[419929328,1775514641865,-1337.30371513,0.0001,2]
[419929329,1775514641874,-202.74253669,0.0001,2]
[419929330,1775514641883,-33035.6402,0.00010038,2]
[419929331,1775514641892,-1000.0,0.00010038,2]
[419929332,1775514641901,-169.34,0.00010073,2]
[419929333,1775514642310,-166.66,0.0001026,2]
[419929334,1775514642320,-1005.3,0.00010274,2]
[419929335,1775514642329,-5534.0,0.000103,3]
[419929336,1775514642338,-1315.0,0.00010322,2]
[419929337,1775514642347,-1687.86651367,0.00010342,2]
[419929338,1775514642357,-559.19665776,0.00010441,2]
[419929339,1775514642366,-1109.27382076,0.00010441,2]
[419929340,1775514642375,-1000.0,0.00010441,2]
[419929341,1775514642385,-1000.0,0.00010441,2]
[419929342,1775514642394,-1000.0,0.00010441,2]
[419929343,1775514642403,-1000.0,0.00010441,2]
[419929344,1775514642412,-1000.0,0.00010441,2]
[419929345,1775514642421,-5534.0,0.000105,5]
[419929346,1775514642430,-1098.0,0.00010547,2]
[419929347,1775514642440,-1005.3,0.00010548,2]
[419929348,1775514642449,-200.0,0.00010548,2]
[419929349,1775514642458,-1386.78395259,0.00010548,2]
[419929350,1775514642467,-250.0,0.00010553,2]
[419929351,1775514642476,-250.0,0.00010553,2]
[419929353,1775514642486,-378.0,0.00010568,2]
[419929354,1775514642495,-166.66,0.00010578,2]
[419929355,1775514642504,-785.0,0.00010589,2]
[419929356,1775514642513,-420.0,0.00010684,2]
[419929357,1775514642522,-1680.0,0.00010684,2]
[419929358,1775514642532,-255.0,0.00010684,2]
[419929359,1775514642542,-420.0,0.00010684,2]
[419929360,1775514642551,-250.0,0.00010684,2]
[419929361,1775514642560,-998.0,0.00010687,2]
[419929362,1775514642569,-830.0,0.00010709,2]
[419929363,1775514642578,-478.0,0.0001073,2]
[419929364,1775514642587,-1330.0,0.00010751,2]
[419929365,1775514642597,-1063.0,0.00010773,2]
[419929366,1775514642606,-1005.3,0.00010822,2]
[419929367,1775514642616,-2833.5,0.00010881,2]
[419929368,1775514642625,-2833.5,0.00010881,2]
[419929369,1775514642634,-2833.5,0.00010881,2]
[419929370,1775514642644,-2833.5,0.00010881,2]
[419929372,1775514642654,-166.66,0.00010895,2]
[419929373,1775514642663,-2262.84289014,0.000109,2]
[419929375,1775514642672,-2262.84289008,0.000109,2]
[419929377,1775514642682,-500.0,0.00010959,2]
[419929380,1775514642691,-150.0,0.00010959,2]
[419929382,1775514642700,-1500.0,0.00010988,2]
[419929385,1775514642710,-1500.0,0.00010988,2]
[419929388,1775514642719,-1500.0,0.00010988,2]
[419929391,1775514642729,-1500.0,0.00010988,2]
[419929392,1775514642738,-1500.0,0.00010988,2]
[419929393,1775514642747,-150.0,0.00011,2]
[419929394,1775514642757,-2000.0,0.00011052,2]
[419929395,1775514642766,-1730.51947947,0.00011085,2]
[419929396,1775514642775,-1005.3,0.00011096,2]
[419929397,1775514642785,-200.0,0.00011096,2]
[419929398,1775514642794,-1438.09495884,0.00011096,2]
[419929399,1775514642804,-26854.46091885,0.00011099,2]
[419929400,1775514642813,-26854.46091877,0.00011099,2]
[419929401,1775514642823,-26854.46091877,0.00011135,2]
[419929402,1775514642832,-166.66,0.00011213,2]
[419929403,1775514642842,-169.34,0.00011332,2]
[419929404,1775514642851,-1005.3,0.0001137,2]
[419929405,1775514642860,-500.0,0.00011479,2]
[419929406,1775514642870,-5202.72,0.00011507,2]
[419929407,1775514642879,-317.16,0.0001153,2]
[419929408,1775514642888,-877.452931,0.00011536,2]
[419929409,1775514642898,-1229.6901256,0.00011536,2]
[419929410,1775514642907,-2000.0,0.00011536,2]
[419929411,1775514642916,-2000.0,0.00011536,2]
[419929412,1775514642926,-2000.0,0.00011536,2]
[419929413,1775514642936,-2262.84289008,0.00011554,2]
[419929414,1775514642945,-261.66,0.00011569,2]
[419929415,1775514642954,-1005.3,0.00011644,2]
[419929416,1775514642963,-200.0,0.00011644,2]
[419929417,1775514642973,-1386.78395259,0.00011644,2]
[419929418,1775514642983,-587.0,0.00011753,2]
[419929419,1775514642993,-2351.0,0.00011753,2]
[419929420,1775514643002,-433.0,0.00011753,2]
[419929421,1775514643011,-161.0,0.00011753,2]
[419929422,1775514643021,-26854.46091877,0.00011795,2]
[419929423,1775514643031,-1005.3,0.00011918,2]
[419929424,1775514643040,-152.0,0.00012,3]
[419929425,1775514643050,-1512.47134075,0.00012084,2]
[419929426,1775514643060,-2500.0,0.00012084,2]
[419929427,1775514643069,-2500.0,0.00012084,2]
[419929428,1775514643078,-1005.3,0.00012192,2]
[419929429,1775514643088,-200.0,0.00012192,2]
[419929430,1775514643097,-152.0,0.000122,4]
[419929431,1775514643106,-2000.0,0.0001228,2]
[419929432,1775514643116,-1187.96,0.00012297,2]
[419929433,1775514643125,-151.0,0.00012364,2]
[419929434,1775514643134,-1084.35002387,0.00012366,3]
[419929435,1775514643144,-168.5736,0.000124,2]
[419929436,1775514643153,-152.0,0.000124,5]
[419929437,1775514643163,-2262.84289008,0.00012423,2]
[419929438,1775514643172,-26854.46091877,0.00012455,2]
[419929439,1775514643181,-1005.3,0.00012466,2]
[419929440,1775514643191,-152.0,0.000126,6]
[419929441,1775514643200,-3000.0,0.00012632,2]
[419929443,1775514643210,-2834.26277974,0.00012632,2]
[419929445,1775514643219,-174.60324019,0.00012739,2]
[419929447,1775514643228,-1005.3,0.0001274,2]
[419929449,1775514643237,-200.0,0.0001274,2]
[419929450,1775514643246,-152.0,0.000128,7]
[419929452,1775514643256,-160.0,0.00012852,2]
[419929454,1775514643265,-322.632884,0.00012852,2]
[419929456,1775514643275,-485.265768,0.00012852,2]
[419929457,1775514643283,-254.283601,0.00012852,2]
[419929458,1775514643293,-177.245505,0.00012852,2]
[419929459,1775514643302,-160.0,0.00012852,2]
[419929460,1775514643311,-851.031953,0.00012852,2]
[419929461,1775514643320,-1542.063906,0.00012852,2]
[419929462,1775514643330,-160.0,0.00012852,2]
[419929463,1775514643340,-314.970897,0.00012852,2]
[419929464,1775514643350,-469.941794,0.00012852,2]
[419929465,1775514643360,-348.55866469,0.00012858,2]
[419929466,1775514643369,-1908.7943807,0.00012871,2]
[419929467,1775514643379,-823.0,0.00012928,2]
[419929468,1775514643389,-3292.0,0.00012928,2]
[419929469,1775514643399,-736.0,0.00012928,2]
[419929470,1775514643408,-250.0,0.00012966,2]
[419929471,1775514643418,-250.0,0.00013,2]
[419929472,1775514643427,-501.0,0.00013,2]
[419929473,1775514643437,-152.0,0.00013,8]
[419929474,1775514643446,-1005.3798952,0.00013014,2]
[419929475,1775514643456,-26854.46091877,0.00013114,2]
[419929476,1775514643465,-150.0,0.00013117,2]
[419929477,1775514643475,-978.68924617,0.0001318,2]
[419929478,1775514643485,-152.0,0.000132,9]
[419929479,1775514643495,-200.0,0.00013288,2]
[419929480,1775514643504,-2262.84289008,0.00013292,2]
[419929481,1775514643514,-152.0,0.000134,10]
[419929482,1775514643524,-160.0,0.00013424,2]
[419929483,1775514643534,-290.650187,0.00013424,2]
[419929484,1775514643544,-421.300374,0.00013424,2]
[419929485,1775514643555,-160.0,0.00013424,2]
[419929486,1775514643564,-238.776349,0.00013424,2]
[419929487,1775514643574,-317.552698,0.00013424,2]
[419929488,1775514643584,-439.953933,0.00013495,2]
[419929489,1775514643593,-1160.498118,0.00013495,2]
[419929490,1775514643603,-429.505769,0.00013495,2]
[419929491,1775514643612,-2000.0,0.00013508,2]
[419929492,1775514643622,-160.0,0.0001353,2]
[419929493,1775514643631,-160.0,0.00013531,2]
[419929494,1775514643641,-2565.87,0.00013585,2]
[419929495,1775514643651,-152.0,0.000136,11]
[419929496,1775514643661,-500.0,0.00013698,2]
[419929497,1775514643670,-500.0,0.00013698,2]
[419929498,1775514643680,-500.0,0.00013698,2]
[419929499,1775514643690,-500.0,0.00013698,2]
[419929500,1775514643699,-500.0,0.00013698,2]
[419929501,1775514643708,-500.0,0.00013698,2]
[419929502,1775514643718,-348.586408,0.00013698,2]
[419929503,1775514643727,-500.0,0.00013698,2]
[419929504,1775514643737,-500.0,0.00013698,2]
[419929505,1775514643747,-500.0,0.00013698,2]
[419929506,1775514643757,-500.0,0.00013698,2]
[419929507,1775514643766,-500.0,0.00013698,2]
[419929508,1775514643776,-500.0,0.00013698,2]
[419929509,1775514643785,-500.0,0.00013698,2]
[419929510,1775514643795,-500.0,0.00013698,2]
[419929511,1775514643805,-500.0,0.00013698,2]
[419929512,1775514643814,-500.0,0.00013698,2]
[419929513,1775514643824,-500.0,0.00013698,2]
[419929514,1775514643833,-500.0,0.00013698,2]
[419929515,1775514643843,-500.0,0.00013698,2]
[419929516,1775514643853,-500.0,0.00013698,2]
[419929517,1775514643863,-500.0,0.00013698,2]
[419929518,1775514643873,-500.0,0.00013698,2]
[419929519,1775514643882,-500.0,0.00013698,2]
[419929520,1775514643892,-500.0,0.00013698,2]
[419929521,1775514643902,-500.0,0.00013698,2]
[419929522,1775514643911,-500.0,0.00013698,2]
[419929523,1775514643921,-500.0,0.00013698,2]
[419929524,1775514643931,-500.0,0.00013698,2]
[419929525,1775514643941,-500.0,0.00013698,2]
[419929526,1775514643950,-500.0,0.00013698,2]
[419929527,1775514643960,-500.0,0.00013698,2]
[419929528,1775514643970,-500.0,0.00013698,2]
[419929529,1775514643979,-500.0,0.00013698,2]
[419929530,1775514643988,-500.0,0.00013698,2]
[419929531,1775514643998,-500.0,0.00013698,2]
[419929532,1775514644008,-500.0,0.00013698,2]
[419929533,1775514644017,-334.02643621,0.00013698,2]
[419929534,1775514644027,-500.0,0.00013698,2]
[419929535,1775514644036,-500.0,0.00013698,2]
[419929536,1775514644046,-500.0,0.00013698,2]
[419929537,1775514644055,-500.0,0.00013698,2]
[419929538,1775514644065,-500.0,0.00013698,2]
[419929539,1775514644074,-500.0,0.00013698,2]
[419929540,1775514644083,-500.0,0.00013698,2]
[419929541,1775514644093,-500.0,0.00013698,2]
[419929542,1775514644102,-500.0,0.00013698,2]
[419929543,1775514644111,-500.0,0.00013698,2]
[419929544,1775514644121,-500.0,0.00013698,2]
[419929545,1775514644130,-500.0,0.00013698,2]
[419929546,1775514644139,-500.0,0.00013698,2]
[419929547,1775514644149,-500.0,0.00013698,2]
[419929548,1775514644158,-503.57594394,0.00013698,2]
[419929549,1775514644168,-500.0,0.00013698,2]
[419929550,1775514644177,-500.0,0.00013698,2]
[419929551,1775514644187,-500.0,0.00013698,2]
[419929552,1775514644196,-500.0,0.00013698,2]
[419929553,1775514644206,-500.0,0.00013698,2]
[419929554,1775514644215,-500.0,0.00013698,2]
[419929555,1775514644225,-500.0,0.00013698,2]
[419929556,1775514644234,-500.0,0.00013698,2]
[419929557,1775514644244,-500.0,0.00013698,2]
[419929558,1775514644254,-500.0,0.00013698,2]
[419929559,1775514644263,-500.0,0.00013698,2]
[419929560,1775514644273,-500.0,0.00013698,2]
[419929561,1775514644282,-500.0,0.00013698,2]
[419929562,1775514644291,-500.0,0.00013698,2]
[419929563,1775514644300,-547.42518034,0.00013698,2]
[419929564,1775514644309,-637.4,0.00013698,2]
[419929565,1775514644318,-637.4,0.00013698,2]
[419929566,1775514644327,-637.4,0.00013698,2]
[419929567,1775514644337,-637.4,0.00013698,2]
[419929568,1775514644347,-637.4,0.00013698,2]
[419929569,1775514644356,-637.4,0.00013698,2]
[419929570,1775514644365,-637.4,0.00013698,2]
[419929571,1775514644375,-637.4,0.00013698,2]
[419929572,1775514644384,-637.4,0.00013698,2]
[419929573,1775514644393,-637.4,0.00013698,2]
[419929574,1775514644402,-637.4,0.00013698,2]
[419929575,1775514644412,-637.4,0.00013698,2]
[419929576,1775514644421,-637.4,0.00013698,2]
[419929577,1775514644431,-637.4,0.00013698,2]
[419929578,1775514644440,-637.4,0.00013698,2]
[419929579,1775514644450,-637.4,0.00013698,2]
[419929580,1775514644460,-637.4,0.00013698,2]
[419929581,1775514644469,-637.4,0.00013698,2]
[419929582,1775514644479,-637.4,0.00013698,2]
[419929583,1775514644488,-500.0,0.00013698,2]
[419929584,1775514644498,-500.0,0.00013698,2]
[419929585,1775514644507,-500.0,0.00013698,2]
[419929586,1775514644517,-500.0,0.00013698,2]
[419929587,1775514644526,-500.0,0.00013698,2]
[419929588,1775514644536,-500.0,0.00013698,2]
[419929589,1775514644546,-500.0,0.00013698,2]
[419929590,1775514644556,-500.0,0.00013698,2]
[419929591,1775514644565,-500.0,0.00013698,2]
[419929592,1775514644575,-500.0,0.00013698,2]
[419929593,1775514644584,-500.0,0.00013698,2]
[419929594,1775514644594,-500.0,0.00013698,2]
[419929595,1775514644603,-500.0,0.00013698,2]
[419929596,1775514644613,-500.0,0.00013698,2]
[419929597,1775514644622,-500.0,0.00013698,2]
[419929598,1775514644631,-500.0,0.00013698,2]
[419929599,1775514644641,-186.12488173,0.00013698,2]
[419929600,1775514644650,-500.0,0.00013698,2]
[419929601,1775514644660,-500.0,0.00013698,2]
[419929602,1775514644669,-500.0,0.00013698,2]
[419929603,1775514644679,-500.0,0.00013698,2]
[419929604,1775514644689,-500.0,0.00013698,2]
[419929605,1775514644698,-500.0,0.00013698,2]
[419929606,1775514644708,-500.0,0.00013698,2]
[419929607,1775514644717,-500.0,0.00013698,2]
[419929608,1775514644727,-500.0,0.00013698,2]
[419929609,1775514644737,-500.0,0.00013698,2]
[419929610,1775514644747,-500.0,0.00013698,2]
[419929611,1775514644757,-500.0,0.00013698,2]
[419929612,1775514644767,-500.0,0.00013698,2]
[419929613,1775514644777,-500.0,0.00013698,2]
[419929614,1775514644786,-500.0,0.00013698,2]
[419929615,1775514644796,-500.0,0.00013698,2]
[419929616,1775514644806,-500.0,0.00013698,2]
[419929617,1775514644816,-500.0,0.00013698,2]
[419929618,1775514644826,-500.0,0.00013698,2]
[419929619,1775514644837,-639.79,0.00013698,2]
[419929620,1775514644847,-639.79,0.00013698,2]
[419929621,1775514644857,-639.79,0.00013698,2]
[419929622,1775514644867,-639.79,0.00013698,2]
[419929623,1775514644877,-639.79,0.00013698,2]
[419929624,1775514644886,-639.79,0.00013698,2]
[419929625,1775514644896,-639.79,0.00013698,2]
[419929626,1775514644906,-639.79,0.00013698,2]
[419929627,1775514644916,-639.79,0.00013698,2]
[419929628,1775514644925,-639.79,0.00013698,2]
[419929629,1775514644935,-639.79,0.00013698,2]
[419929630,1775514644944,-639.79,0.00013698,2]
[419929631,1775514644954,-639.79,0.00013698,2]
[419929632,1775514644964,-639.79,0.00013698,2]
[419929633,1775514644973,-639.79,0.00013698,2]
[419929634,1775514644982,-639.79,0.00013698,2]
[419929635,1775514644992,-639.79,0.00013698,2]